fUSD/lending_fUSD_20250108
["ID","MTS","AMOUNT","RATE_DAILY","PERIOD"]
[348091885,1736307038837,-500.0,0.00010272,2]
[348091886,1736307038846,-500.0,0.00010272,2]
[348091887,1736307038855,-591.8,0.00010272,2]
[348091888,1736307038865,-501.10013881,0.00010272,2]
[348091889,1736307038874,-500.0,0.00010272,2]
[348091890,1736307038883,-500.0,0.00010272,2]
[348091891,1736307038892,-500.0,0.00010272,2]
[348091892,1736307038901,-500.0,0.00010272,2]
[348091893,1736307038910,-1376.58,0.00010272,2]
[348091894,1736307038919,-500.0,0.00010272,2]
[348091895,1736307038931,-2695.04,0.00010272,2]
[348091896,1736307038940,-500.0,0.00010272,2]
[348091897,1736307038949,-500.0,0.00010272,2]
[348091898,1736307038958,-596.91,0.00010272,2]
[348091899,1736307038967,-500.0,0.00010272,2]
[348091900,1736307038978,-500.0,0.00010272,2]
[348091901,1736307038987,-683.62,0.00010272,2]
[348091902,1736307038995,-500.0,0.00010272,2]
[348091903,1736307039005,-559.58,0.00010272,2]
[348091904,1736307039016,-500.0,0.00010272,2]
[348091905,1736307039025,-500.0,0.00010272,2]
[348091906,1736307039035,-500.0,0.00010272,2]
[348091907,1736307039044,-500.0,0.00010272,2]
[348091908,1736307039053,-500.0,0.00010272,2]
[348091909,1736307039062,-500.0,0.00010272,2]
[348091910,1736307039072,-500.0,0.00010272,2]
[348091911,1736307039082,-834.01,0.00010272,2]
[348091912,1736307039091,-536.45,0.00010272,2]
[348091913,1736307039101,-500.0,0.00010272,2]
[348091914,1736307039111,-508.00025721,0.00010272,2]
[348091915,1736307039121,-500.0,0.00010272,2]
[348091916,1736307039136,-500.0,0.00010272,2]
[348091917,1736307039150,-500.0,0.00010272,2]
[348091918,1736307039161,-571.27,0.00010272,2]
[348091919,1736307039170,-508.20575819,0.00010272,2]
[348091920,1736307039179,-375.535364,0.00010272,2]
[348091921,1736307039189,-500.0,0.00010272,2]
[348091922,1736307039198,-500.0,0.00010272,2]
[348091923,1736307039214,-500.0,0.00010272,2]
[348091924,1736307039225,-1637.45,0.00010272,2]
[348091925,1736307039235,-500.0,0.00010272,2]
[348091926,1736307039244,-591.52,0.00010272,2]
[348091927,1736307039254,-500.0,0.00010272,2]
[348091928,1736307039264,-357.80011,0.00010272,2]
[348091929,1736307039273,-1154.07,0.00010272,2]
[348091930,1736307039283,-443.08740824,0.00010272,2]
[348091931,1736307039292,-500.0,0.00010272,2]
[348091932,1736307039301,-500.0,0.00010272,2]
[348091933,1736307039310,-1705.56,0.00010272,2]
[348091934,1736307039320,-824.08,0.00010272,2]
[348091935,1736307039329,-500.0,0.00010272,2]
[348091936,1736307039338,-500.0,0.00010272,2]
[348091937,1736307039349,-508.61458125,0.00010272,2]
[348091938,1736307039360,-500.0,0.00010272,2]
[348091939,1736307039369,-500.0,0.00010272,2]
[348091940,1736307039379,-500.0,0.00010272,2]
[348091941,1736307039389,-688.7,0.00010272,2]
[348091942,1736307039398,-500.0,0.00010272,2]
[348091943,1736307039407,-500.0,0.00010272,2]
[348091944,1736307039416,-500.0,0.00010272,2]
[348091945,1736307039426,-500.0,0.00010272,2]
[348091946,1736307039435,-500.0,0.00010272,2]
[348091947,1736307039446,-500.0,0.00010272,2]
[348091948,1736307039455,-500.0,0.00010272,2]
[348091949,1736307039464,-500.0,0.00010272,2]
[348091950,1736307039473,-500.0,0.00010272,2]
[348091951,1736307039483,-500.0,0.00010272,2]
[348091952,1736307039493,-500.0,0.00010272,2]
[348091953,1736307039502,-629.68,0.00010272,2]
[348091954,1736307039511,-500.0,0.00010272,2]
[348091955,1736307039522,-596.46,0.00010272,2]
[348091956,1736307039532,-500.0,0.00010272,2]
[348091957,1736307039541,-500.0,0.00010272,2]
[348091958,1736307039551,-511.11,0.00010272,2]
[348091959,1736307039560,-500.0,0.00010272,2]
[348091960,1736307039569,-500.0,0.00010272,2]
[348091961,1736307039578,-500.0,0.00010272,2]
[348091962,1736307039588,-500.0,0.00010272,2]
[348091963,1736307039597,-526.36742151,0.00010272,2]
[348091964,1736307039607,-500.0,0.00010272,2]
[348091965,1736307039616,-500.0,0.00010272,2]
[348091966,1736307039625,-500.0,0.00010272,2]
[348091967,1736307039634,-500.0,0.00010272,2]
[348091968,1736307039643,-2190.99,0.00010272,2]
[348091969,1736307039652,-500.0,0.00010272,2]
[348091970,1736307039661,-500.0,0.00010272,2]
[348091971,1736307039670,-500.0,0.00010272,2]
[348091972,1736307039679,-916.93,0.00010272,2]
[348091973,1736307039688,-500.0,0.00010272,2]
[348091975,1736307039697,-530.47,0.00010272,2]
[348091977,1736307039706,-1026.98,0.00010272,2]
[348091979,1736307039715,-1871.54,0.00010272,2]
[348091980,1736307039725,-500.0,0.00010272,2]
[348091981,1736307039734,-500.0,0.00010272,2]
[348091982,1736307039744,-500.0,0.00010272,2]
[348091983,1736307039753,-500.0,0.00010272,2]
[348091984,1736307039764,-1290.12219614,0.00010272,2]
[348091985,1736307039773,-227358.64843277,0.00010272,2]
[348091986,1736307039783,-500.0,0.00010273,2]
[348091987,1736307039792,-500.0,0.00010273,2]
[348091988,1736307039802,-1615.48,0.00010273,2]
[348091989,1736307039812,-500.0,0.00010273,2]
[348091994,1736307040007,-523.61,0.00010273,2]
[348091995,1736307040020,-712.95,0.00010273,2]
[348091996,1736307040030,-577.06,0.00010273,2]
[348091997,1736307040041,-857.33,0.00010273,2]
[348091998,1736307040051,-565.44,0.00010273,2]
[348091999,1736307040061,-500.0,0.00010273,2]
[348092000,1736307040071,-1281.66,0.00010273,2]
[348092001,1736307040080,-865.29,0.00010273,2]
[348092002,1736307040090,-500.0,0.00010273,2]
[348092003,1736307040099,-500.0,0.00010273,2]
[348092004,1736307040109,-517.71,0.00010273,2]
[348092005,1736307040119,-500.0,0.00010273,2]
[348092006,1736307040128,-763.72,0.00010273,2]
[348092007,1736307040138,-500.0,0.00010273,2]
[348092008,1736307040147,-1103.29,0.00010273,2]
[348092009,1736307040156,-1171.69,0.00010273,2]
[348092010,1736307040165,-500.0,0.00010273,2]
[348092011,1736307040176,-642.61,0.00010273,2]
[348092012,1736307040185,-500.0,0.00010273,2]
[348092013,1736307040194,-2465.35,0.00010273,2]
[348092014,1736307040203,-953.38,0.00010273,2]
[348092015,1736307040213,-627.45,0.00010273,2]
[348092016,1736307040222,-500.0,0.00010273,2]
[348092017,1736307040232,-500.0,0.00010273,2]
[348092018,1736307040241,-510.7815544,0.00010273,2]
[348092019,1736307040251,-500.0,0.00010273,2]
[348092020,1736307040261,-640.18,0.00010273,2]
[348092021,1736307040271,-644.21,0.00010273,2]
[348092022,1736307040280,-500.0,0.00010273,2]
[348092023,1736307040289,-500.0,0.00010273,2]
[348092024,1736307040299,-500.0,0.00010273,2]
[348092025,1736307040309,-1092.19,0.00010273,2]
[348092026,1736307040318,-500.0,0.00010273,2]
[348092027,1736307040329,-500.0,0.00010273,2]
[348092028,1736307040338,-709.22,0.00010273,2]
[348092029,1736307040348,-185.34,0.00010384,2]
[348092030,1736307040357,-1289.19,0.00010446,2]
[348092031,1736307040366,-508.24086076,0.00010521,2]
[348092032,1736307040376,-150.0,0.00010534,2]
[348092033,1736307040386,-150.0,0.00010534,2]
[348092034,1736307040395,-150.0,0.00010534,2]
[348092035,1736307040405,-150.0,0.00010534,2]
[348092036,1736307040414,-150.0,0.00010534,2]
[348092037,1736307040423,-150.0,0.00010534,2]
[348092038,1736307040433,-150.0,0.00010534,2]
[348092039,1736307040443,-152.33,0.00010534,2]
[348092040,1736307040453,-300.0,0.00010534,2]
[348092041,1736307040463,-548.43,0.00010544,2]
[348092042,1736307040472,-597.36,0.00010544,2]
[348092043,1736307040481,-500.0,0.00010544,2]
[348092044,1736307040490,-500.0,0.00010544,2]
[348092045,1736307040499,-543.43,0.00010544,2]
[348092046,1736307040509,-500.0,0.00010545,2]
[348092047,1736307040522,-500.0,0.00010545,2]
[348092048,1736307040532,-500.0,0.00010545,2]
[348092049,1736307040542,-500.0,0.00010545,2]
[348092050,1736307040552,-500.0,0.00010545,2]
[348092051,1736307040562,-500.0,0.00010545,2]
[348092052,1736307040572,-500.0,0.00010545,2]
[348092053,1736307040582,-500.0,0.00010545,2]
[348092054,1736307040591,-500.0,0.00010545,2]
[348092055,1736307040601,-244.23,0.00010545,2]
[348092056,1736307040610,-500.0,0.00010545,2]
[348092057,1736307040619,-232.6,0.00010545,2]
[348092058,1736307040628,-208.76,0.00010545,2]
[348092059,1736307040638,-505.77,0.00010545,2]
[348092060,1736307040647,-500.0,0.00010545,2]
[348092061,1736307040656,-563.86,0.00010545,2]
[348092062,1736307040665,-505.63,0.00010545,2]
[348092063,1736307040674,-246.84983325,0.00010545,2]
[348092064,1736307040683,-500.0,0.00010545,2]
[348092065,1736307040693,-580.41,0.00010546,2]
[348092066,1736307040702,-1709.75,0.00010546,2]
[348092067,1736307040712,-1346.78,0.00010546,2]
[348092068,1736307040721,-1094.83,0.00010546,2]
[348092069,1736307040731,-500.0,0.00010546,2]
[348092070,1736307040740,-500.0,0.00010546,2]
[348092071,1736307040750,-500.0,0.00010546,2]
[348092072,1736307040760,-500.0,0.00010546,2]
[348092073,1736307040770,-500.0,0.00010546,2]
[348092074,1736307040780,-500.0,0.00010546,2]
[348092075,1736307040789,-500.0,0.00010546,2]
[348092076,1736307040800,-500.0,0.00010546,2]
[348092077,1736307040809,-500.0,0.00010546,2]
[348092078,1736307040818,-579.82,0.00010546,2]
[348092079,1736307040828,-500.0,0.00010546,2]
[348092080,1736307040837,-500.0,0.00010546,2]
[348092081,1736307040847,-602.69,0.00010546,2]
[348092082,1736307040856,-500.0,0.00010546,2]
[348092083,1736307040866,-500.0,0.00010546,2]
[348092084,1736307040875,-500.0,0.00010546,2]
[348092085,1736307040884,-500.0,0.00010546,2]
[348092086,1736307040894,-500.0,0.00010546,2]
[348092087,1736307040903,-500.0,0.00010546,2]
[348092088,1736307040913,-500.0,0.00010546,2]
[348092089,1736307040922,-1340.32,0.00010546,2]
[348092090,1736307040934,-233.05434916,0.00010546,2]
[348092091,1736307040947,-500.0,0.00010546,2]
[348092092,1736307040959,-500.0,0.00010546,2]
[348092093,1736307040970,-500.0,0.00010546,2]
[348092094,1736307040981,-500.0,0.00010546,2]
[348092095,1736307040990,-500.0,0.00010546,2]
[348092096,1736307040999,-500.0,0.00010546,2]
[348092097,1736307041010,-500.0,0.00010546,2]
[348092098,1736307041021,-500.0,0.00010546,2]
[348092099,1736307041030,-500.0,0.00010546,2]
[348092100,1736307041040,-500.0,0.00010546,2]
[348092101,1736307041049,-500.0,0.00010546,2]
[348092102,1736307041059,-500.0,0.00010546,2]
[348092103,1736307041068,-500.0,0.00010546,2]
[348092104,1736307041077,-500.0,0.00010546,2]
[348092105,1736307041087,-1531.81,0.00010546,2]
[348092106,1736307041096,-500.0,0.00010546,2]
[348092107,1736307041106,-500.0,0.00010546,2]
[348092108,1736307041115,-500.0,0.00010546,2]
[348092109,1736307041124,-500.0,0.00010546,2]
[348092110,1736307041133,-500.0,0.00010546,2]
[348092111,1736307041143,-661.92,0.00010546,2]
[348092112,1736307041152,-500.0,0.00010546,2]
[348092113,1736307041161,-500.0,0.00010546,2]
[348092114,1736307041170,-500.0,0.00010546,2]
[348092115,1736307041179,-500.0,0.00010546,2]
[348092116,1736307041189,-500.0,0.00010546,2]
[348092117,1736307041198,-1131.08,0.00010546,2]
[348092118,1736307041207,-500.0,0.00010546,2]
[348092119,1736307041216,-500.0,0.00010546,2]
[348092120,1736307041225,-500.0,0.00010546,2]
[348092121,1736307041235,-500.0,0.00010546,2]
[348092122,1736307041244,-500.0,0.00010546,2]
[348092123,1736307041253,-591.8,0.00010546,2]
[348092124,1736307041265,-500.0,0.00010546,2]
[348092125,1736307041274,-500.0,0.00010546,2]
[348092126,1736307041284,-500.0,0.00010546,2]
[348092127,1736307041293,-500.0,0.00010546,2]
[348092128,1736307041302,-1376.58,0.00010546,2]
[348092129,1736307041312,-500.0,0.00010546,2]
[348092130,1736307041321,-2695.04,0.00010546,2]
[348092131,1736307041330,-500.0,0.00010546,2]
[348092132,1736307041340,-500.0,0.00010546,2]
[348092133,1736307041350,-596.91,0.00010546,2]
[348092134,1736307041359,-500.0,0.00010546,2]
[348092135,1736307041369,-500.0,0.00010546,2]
[348092136,1736307041379,-556.12282881,0.00010546,2]
[348092137,1736307041389,-559.58,0.00010546,2]
[348092138,1736307041398,-683.62,0.00010546,2]
[348092139,1736307041407,-500.0,0.00010546,2]
[348092140,1736307041417,-500.0,0.00010546,2]
[348092141,1736307041426,-500.0,0.00010546,2]
[348092142,1736307041437,-500.0,0.00010546,2]
[348092143,1736307041447,-500.0,0.00010546,2]
[348092144,1736307041456,-500.0,0.00010546,2]
[348092145,1736307041466,-500.0,0.00010546,2]
[348092146,1736307041475,-834.01,0.00010546,2]
[348092147,1736307041484,-536.45,0.00010546,2]
[348092148,1736307041494,-500.0,0.00010546,2]
[348092149,1736307041505,-500.0,0.00010546,2]
[348092150,1736307041515,-500.0,0.00010546,2]
[348092151,1736307041526,-571.27,0.00010546,2]
[348092152,1736307041536,-375.535364,0.00010546,2]
[348092153,1736307041546,-500.0,0.00010546,2]
[348092154,1736307041556,-500.0,0.00010546,2]
[348092155,1736307041566,-1637.45,0.00010546,2]
[348092156,1736307041576,-500.0,0.00010546,2]
[348092157,1736307041585,-591.52,0.00010546,2]
[348092158,1736307041595,-568.88719961,0.00010546,2]
[348092159,1736307041604,-357.80011,0.00010546,2]
[348092160,1736307041614,-1154.07,0.00010546,2]
[348092161,1736307041624,-500.0,0.00010546,2]
[348092162,1736307041633,-500.0,0.00010546,2]
[348092163,1736307041643,-824.08,0.00010546,2]
[348092164,1736307041653,-1705.56,0.00010546,2]
[348092165,1736307041663,-500.0,0.00010546,2]
[348092166,1736307041672,-192.01374659,0.00010546,2]
[348092167,1736307041682,-500.0,0.00010546,2]
[348092168,1736307041691,-500.0,0.00010546,2]
[348092169,1736307041701,-688.7,0.00010546,2]
[348092170,1736307041710,-520.77727633,0.00010546,2]
[348092171,1736307041719,-500.0,0.00010546,2]
[348092172,1736307041728,-500.0,0.00010546,2]
[348092173,1736307041738,-500.0,0.00010546,2]
[348092174,1736307041747,-500.0,0.00010546,2]
[348092175,1736307041756,-500.0,0.00010546,2]
[348092176,1736307041767,-500.0,0.00010546,2]
[348092177,1736307041777,-540.68545833,0.00010546,2]
[348092178,1736307041786,-629.68,0.00010546,2]
[348092179,1736307041796,-500.0,0.00010546,2]
[348092180,1736307041806,-500.0,0.00010546,2]
[348092181,1736307041815,-596.46,0.00010546,2]
[348092182,1736307041824,-500.0,0.00010546,2]
[348092183,1736307041833,-511.11,0.00010546,2]
[348092184,1736307041842,-500.0,0.00010546,2]
[348092185,1736307041852,-500.0,0.00010546,2]
[348092186,1736307041862,-500.0,0.00010546,2]
[348092187,1736307041872,-500.0,0.00010546,2]
[348092188,1736307041881,-576.44,0.00010546,2]
[348092189,1736307041891,-500.0,0.00010546,2]
[348092190,1736307041900,-2190.99,0.00010546,2]
[348092191,1736307041910,-500.0,0.00010546,2]
[348092192,1736307041919,-500.0,0.00010546,2]
[348092193,1736307041929,-916.93,0.00010546,2]
[348092194,1736307041943,-500.0,0.00010546,2]
[348092195,1736307041952,-530.47,0.00010546,2]
[348092196,1736307041961,-1026.98,0.00010546,2]
[348092197,1736307041971,-1871.54,0.00010546,2]
[348092198,1736307041982,-500.0,0.00010546,2]
[348092199,1736307041991,-500.0,0.00010546,2]
[348092200,1736307042000,-500.0,0.00010546,2]
[348092201,1736307042010,-500.0,0.00010546,2]
[348092202,1736307042019,-494.72,0.00010546,2]
[348092203,1736307042029,-500.0,0.00010547,2]
[348092204,1736307042038,-500.0,0.00010547,2]
[348092205,1736307042048,-1615.48,0.00010547,2]
[348092206,1736307042057,-500.0,0.00010547,2]
[348092207,1736307042067,-523.61,0.00010547,2]
[348092208,1736307042077,-712.95,0.00010547,2]
[348092209,1736307042086,-577.06,0.00010547,2]
[348092210,1736307042096,-857.33,0.00010547,2]
[348092211,1736307042106,-565.44,0.00010547,2]
[348092212,1736307042115,-500.0,0.00010547,2]
[348092213,1736307042125,-1281.66,0.00010547,2]
[348092214,1736307042134,-865.29,0.00010547,2]
[348092215,1736307042143,-178.64,0.00010547,2]
[348092216,1736307042153,-500.0,0.00010547,2]
[348092217,1736307042162,-505.54625161,0.00010547,2]
[348092218,1736307042171,-763.72,0.00010547,2]
[348092219,1736307042180,-500.0,0.00010547,2]
[348092220,1736307042190,-1103.29,0.00010547,2]
[348092221,1736307042200,-1171.69,0.00010547,2]
[348092222,1736307042209,-642.61,0.00010547,2]
[348092223,1736307042219,-500.0,0.00010547,2]
[348092224,1736307042228,-500.0,0.00010547,2]
[348092225,1736307042237,-2465.35,0.00010547,2]
[348092226,1736307042247,-953.38,0.00010547,2]
[348092227,1736307042257,-627.45,0.00010547,2]
[348092228,1736307042268,-500.0,0.00010547,2]
[348092229,1736307042277,-500.0,0.00010547,2]
[348092230,1736307042287,-500.0,0.00010547,2]
[348092231,1736307042296,-640.18,0.00010547,2]
[348092232,1736307042306,-644.21,0.00010547,2]
[348092233,1736307042315,-500.0,0.00010547,2]
[348092234,1736307042325,-500.0,0.00010547,2]
[348092235,1736307042334,-500.0,0.00010547,2]
[348092236,1736307042344,-1092.19,0.00010547,2]
[348092237,1736307042353,-500.0,0.00010547,2]
[348092238,1736307042362,-500.0,0.00010547,2]
[348092239,1736307042372,-709.22,0.00010547,2]
[348092240,1736307042382,-1000.0,0.00010602,2]
[348092241,1736307042391,-501.99,0.00010772,2]
[348092242,1736307042401,-510.07551181,0.00010818,2]
[348092243,1736307042411,-500.0,0.00010818,2]
[348092244,1736307042420,-315.03144644,0.00010818,2]
[348092245,1736307042429,-500.0,0.00010818,2]
[348092246,1736307042438,-500.0,0.00010818,2]
[348092247,1736307042448,-500.0,0.00010818,2]
[348092248,1736307042458,-500.0,0.00010818,2]
[348092249,1736307042467,-500.0,0.00010818,2]
[348092250,1736307042476,-500.0,0.00010818,2]
[348092251,1736307042486,-500.0,0.00010818,2]
[348092252,1736307042495,-500.0,0.00010818,2]
[348092253,1736307042505,-355.61864336,0.00010818,2]
[348092254,1736307042515,-2929.19,0.00010818,2]
[348092255,1736307042527,-500.0,0.00010818,2]
[348092256,1736307042537,-201.12237948,0.00010818,2]
[348092257,1736307042547,-231.95547612,0.00010818,2]
[348092258,1736307042556,-513.3906486,0.00010818,2]
[348092259,1736307042566,-500.0,0.00010818,2]
[348092260,1736307042576,-312.51395233,0.00010818,2]
[348092261,1736307042585,-500.0,0.00010818,2]
[348092262,1736307042595,-500.0,0.00010818,2]
[348092263,1736307042604,-500.0,0.00010818,2]
[348092264,1736307042614,-592.41074988,0.00010818,2]
[348092265,1736307042623,-511.2401985,0.00010818,2]
[348092266,1736307042633,-513.56589361,0.00010818,2]
[348092267,1736307042642,-508.20928554,0.00010818,2]
[348092268,1736307042652,-527.15070144,0.00010818,2]
[348092269,1736307042661,-505.66436472,0.00010818,2]
[348092270,1736307042670,-500.0,0.00010818,2]
[348092271,1736307042679,-504.35845348,0.00010818,2]
[348092272,1736307042688,-506.92734699,0.00010818,2]
[348092273,1736307042697,-510.53195563,0.00010818,2]
[348092274,1736307042706,-532.82,0.00010818,2]
[348092276,1736307042715,-506.12836796,0.00010818,2]
[348092277,1736307042724,-484.54708418,0.00010818,2]
[348092278,1736307042734,-509.42545106,0.00010818,2]
[348092279,1736307042744,-614.02928251,0.00010818,2]
[348092280,1736307042753,-500.0,0.00010818,2]
[348092281,1736307042763,-506.08151466,0.00010818,2]
[348092282,1736307042772,-504.49684709,0.00010818,2]
[348092283,1736307042782,-514.43118739,0.00010818,2]
[348092284,1736307042791,-505.05647796,0.00010818,2]
[348092285,1736307042800,-508.43838309,0.00010818,2]
[348092286,1736307042809,-619.26473656,0.00010818,2]
[348092287,1736307042819,-166.64394035,0.00010818,2]
[348092288,1736307042828,-503.74050456,0.00010818,2]
[348092289,1736307042838,-175.97796848,0.00010818,2]
[348092290,1736307042847,-503.71897851,0.00010818,2]
[348092291,1736307042856,-506.20269691,0.00010818,2]
[348092292,1736307042866,-500.0,0.00010818,2]
[348092293,1736307042875,-508.28323037,0.00010818,2]
[348092294,1736307042884,-508.56237966,0.00010818,2]
[348092295,1736307042893,-500.0,0.00010818,2]
[348092296,1736307042903,-500.0,0.00010818,2]
[348092298,1736307042912,-638.86205001,0.00010818,2]
[348092300,1736307042921,-500.0,0.00010818,2]
[348092302,1736307042930,-500.0,0.00010818,2]
[348092303,1736307042944,-500.0,0.00010818,2]
[348092304,1736307042953,-500.0,0.00010818,2]
[348092305,1736307042962,-500.0,0.00010818,2]
[348092306,1736307042971,-500.0,0.00010818,2]
[348092307,1736307042981,-500.0,0.00010818,2]
[348092308,1736307042990,-500.0,0.00010818,2]
[348092309,1736307042998,-500.0,0.00010818,2]
[348092310,1736307043008,-500.0,0.00010818,2]
[348092311,1736307043018,-500.0,0.00010818,2]
[348092312,1736307043027,-500.0,0.00010818,2]
[348092313,1736307043036,-500.0,0.00010818,2]
[348092314,1736307043046,-500.0,0.00010818,2]
[348092315,1736307043055,-505.92984641,0.00010818,2]
[348092316,1736307043064,-500.0,0.00010818,2]
[348092317,1736307043073,-447.99935943,0.00010818,2]
[348092318,1736307043083,-500.0,0.00010818,2]
[348092319,1736307043093,-500.0,0.00010818,2]
[348092320,1736307043102,-500.0,0.00010818,2]
[348092321,1736307043112,-500.0,0.00010818,2]
[348092322,1736307043121,-500.0,0.00010818,2]
[348092323,1736307043130,-548.43,0.00010818,2]
[348092324,1736307043139,-500.0,0.00010818,2]
[348092325,1736307043149,-500.0,0.00010818,2]
[348092326,1736307043158,-500.0,0.00010818,2]
[348092327,1736307043167,-500.0,0.00010818,2]
[348092328,1736307043176,-500.0,0.00010818,2]
[348092329,1736307043185,-500.0,0.00010818,2]
[348092330,1736307043195,-500.0,0.00010818,2]
[348092331,1736307043204,-500.0,0.00010818,2]
[348092332,1736307043213,-500.0,0.00010818,2]
[348092333,1736307043222,-500.0,0.00010818,2]
[348092334,1736307043231,-500.0,0.00010818,2]
[348092335,1736307043241,-543.43,0.00010818,2]
[348092336,1736307043250,-500.0,0.00010819,2]
[348092337,1736307043259,-500.0,0.00010819,2]
[348092338,1736307043271,-466.53923906,0.00010819,2]
[348092339,1736307043280,-500.0,0.00010819,2]
[348092340,1736307043289,-513.34322669,0.00010819,2]
[348092341,1736307043298,-517.59121644,0.00010819,2]
[348092342,1736307043307,-500.0,0.00010819,2]
[348092343,1736307043316,-500.0,0.00010819,2]
[348092344,1736307043325,-500.0,0.00010819,2]
[348092345,1736307043334,-500.0,0.00010819,2]
[348092346,1736307043343,-505.77,0.00010819,2]
[348092347,1736307043352,-500.0,0.00010819,2]
[348092348,1736307043362,-563.86,0.00010819,2]
[348092349,1736307043375,-505.63,0.00010819,2]
[348092350,1736307043385,-500.0,0.00010819,2]
[348092351,1736307043395,-580.41,0.0001082,2]
[348092352,1736307043404,-1709.75,0.0001082,2]
[348092353,1736307043414,-1346.78,0.0001082,2]
[348092354,1736307043423,-1094.83,0.0001082,2]
[348092355,1736307043432,-500.0,0.0001082,2]
[348092356,1736307043443,-500.0,0.0001082,2]
[348092357,1736307043454,-500.0,0.0001082,2]
[348092358,1736307043463,-500.0,0.0001082,2]
[348092359,1736307043472,-500.0,0.0001082,2]
[348092360,1736307043481,-500.0,0.0001082,2]
[348092361,1736307043491,-500.0,0.0001082,2]
[348092362,1736307043505,-500.0,0.0001082,2]
[348092363,1736307043514,-500.0,0.0001082,2]
[348092364,1736307043524,-579.82,0.0001082,2]
[348092365,1736307043534,-500.0,0.0001082,2]
[348092366,1736307043544,-500.0,0.0001082,2]
[348092367,1736307043555,-602.69,0.0001082,2]
[348092368,1736307043564,-500.0,0.0001082,2]
[348092369,1736307043573,-500.0,0.0001082,2]
[348092370,1736307043584,-500.0,0.0001082,2]
[348092371,1736307043593,-500.0,0.0001082,2]
[348092372,1736307043603,-500.0,0.0001082,2]
[348092373,1736307043613,-500.0,0.0001082,2]
[348092374,1736307043622,-166.30354896,0.0001082,2]
[348092375,1736307043632,-1340.32,0.0001082,2]
[348092376,1736307043641,-500.0,0.0001082,2]
[348092377,1736307043650,-500.0,0.0001082,2]
[348092378,1736307043659,-500.0,0.0001082,2]
[348092379,1736307043669,-500.0,0.0001082,2]
[348092380,1736307043678,-500.0,0.0001082,2]
[348092381,1736307043687,-500.0,0.0001082,2]
[348092382,1736307043696,-500.0,0.0001082,2]
[348092383,1736307043706,-500.0,0.0001082,2]
[348092384,1736307043715,-500.0,0.0001082,2]
[348092385,1736307043724,-500.0,0.0001082,2]
[348092386,1736307043733,-500.0,0.0001082,2]
[348092387,1736307043742,-500.0,0.0001082,2]
[348092388,1736307043751,-500.0,0.0001082,2]
[348092389,1736307043760,-500.0,0.0001082,2]
[348092390,1736307043772,-1531.81,0.0001082,2]
[348092391,1736307043781,-500.0,0.0001082,2]
[348092392,1736307043791,-500.0,0.0001082,2]
[348092393,1736307043800,-500.0,0.0001082,2]
[348092394,1736307043809,-500.0,0.0001082,2]
[348092395,1736307043818,-500.0,0.0001082,2]